Cogmind - Beta 10.2 @@@ ROGUE MODE // 2020.11.27 @ 23:08:46 Player: DanceFailedIntoGarrisonsToAc Result: Establishing 0b11! Performance ------------- Evolutions (9) 4500 Regions Visited (29) 5800 Robots Destroyed (533) 2665 Value Destroyed (25859) 25859 Prototype IDs (64) 1280 Alien Tech Used (3) 600 Bonus (34229) 34229 TOTAL SCORE: 74933 Bonus ------- High Alert Combat Kills 4820 Follower Combat Kills 841 Entered Garrisons 1400 Used RIF Installer 3500 Network Hubs Disabled 200 Found Hidden Lab 3000 Pursued by Intercept 1000 Destroyed MAIN.C Guards 500 Met MAIN.C 5000 Destroyed MAIN.C Shell 5000 Destroyed MAIN.C 10000 Win 3000 Friendly Fire -4032 Cogmind --------- Core Integrity 347/1600 Matter 300/300 Energy 677/700 System Corruption 60% Temperature Cool (11) Movement Treading (143) Location 0b11 Command Parts ------- > --- POWER (2) -------- Vortex Chain Reactor > --- PROPULSION (6) --- Experimental Biometal Heavy Treads Experimental Biometal Heavy Treads Enhanced Armored Heavy Treads > --- UTILITY (13) ----- Spectral Analyzer Experimental Targeting Computer Experimental Target Analyzer Advanced Core Analyzer Experimental Armor Integrity Analyzer Improved Propulsion Shielding Layered Light Armor Plating Beam Splitter EM Shield Improved Hacking Suite System Purifier Long-range Tractor Beam > --- WEAPON (5) ------- Heavy Machine Gun KE Penetrator KE Penetrator Omega Cannon > --- INVENTORY (4) ---- Potential Cannon Peak State ------------ > --- POWER ------------ Vortex Chain Reactor > --- PROPULSION ------- Experimental Biometal Heavy Treads Experimental Biometal Heavy Treads Enhanced Armored Heavy Treads > --- UTILITY ---------- Spectral Analyzer Experimental Targeting Computer Experimental Target Analyzer Advanced Core Analyzer Advanced Armor Integrity Analyzer Experimental Armor Integrity Analyzer Improved Propulsion Shielding Layered Light Armor Plating Beam Splitter EM Shield Improved Hacking Suite System Purifier Long-range Tractor Beam > --- WEAPON ----------- Heavy Machine Gun KE Penetrator KE Penetrator Omega Cannon > --- INVENTORY -------- Potential Cannon [Rating: 213] Favorites ----------- Power F-cell Engine Engine F-cell Engine Power Core Micro Fission Core Reactor Particle Reactor Propulsion Light Treads Treads Light Treads Leg Myomer Leg Wheel Compact Wheel Hover Unit Backup Propulsion I Flight Unit VTOL Module Utility Medium Storage Unit Device Advanced Heat Sink Storage Medium Storage Unit Processor Advanced Targeting Computer Hackware Relay Coupler [NC] Protection Improved Medium Armor Plating Weapon KE Penetrator Energy Gun Medium Laser Energy Cannon Enhanced Nova Cannon Ballistic Gun KE Penetrator Ballistic Cannon Improved Light Cannon Launcher Gamma Bomb Array Special Weapon Advanced Remote Datajack Impact Weapon Power Maul Piercing Weapon Lance Build | -11 -10 -9 -9 -9 -9 -7 -7 -7 -7 -6 -6 -6 -6 -5 -5 -5 -5 -5 -5 -5 -4 -4 -4 -3 -3 -2 -2 -1 -1 ------- Run | Scr Mat Mat Sto Gar Rec Fac Gar Fac Gar Fac Gar Fac Gar Fac Was Fac Ext Cet Arc Hub Fac Arm Lab Res Gar Res Gar Acc Com Slots Evolved 18 | . . 2 . . . 4 . . . 2 . . . 2 . . . . . . 2 . . 2 . 2 . 2 . Power 1 | . . . . . . . . . . . . . . . . . . . . . . . . 1 . . . . . Propulsion 4 | . . . . . . 2 . . . . . . . . . . . . . . 2 . . . . . . . . Utility 10 | . . 2 . . . 1 . . . . . . . 2 . . . . . . . . . 1 . 2 . 2 . Weapon 3 | . . . . . . 1 . . . 2 . . . . . . . . . . . . . . . . . . . Parts Attached 699 | 9 32 16 37 15 1 10 . 3 18 21 20 5 22 6 19 7 8 11 6 12 24 89 20 30 14 11 26 42 165 Power 61 | 1 3 . 6 2 . . . 1 3 3 . . 3 . 3 . . 2 1 . 2 7 . 4 2 2 1 1 14 Engine 23 | 1 3 . 6 2 . . . 1 1 3 . . 3 . 2 . . . . . . . . . . . . . 1 Core 10 | . . . . . . . . . 2 . . . . . . . . . . . 1 5 . 1 1 . . . . Reactor 28 | . . . . . . . . . . . . . . . 1 . . 2 1 . 1 2 . 3 1 2 1 1 13 Propulsion 137 | 2 6 1 4 2 1 3 . 2 8 8 7 1 5 1 5 1 . 2 . . 6 18 3 7 2 1 6 7 28 Treads 81 | 2 5 1 4 1 1 3 . 2 . 6 5 1 5 . 2 1 . 2 . . 1 3 . 6 2 1 . 4 23 Leg 42 | . . . . 1 . . . . 7 . 2 . . . 3 . . . . . 1 11 3 1 . . 6 3 4 Wheel 8 | . 1 . . . . . . . . 2 . . . 1 . . . . . . 3 1 . . . . . . . Hover 2 | . . . . . . . . . . . . . . . . . . . . . 1 1 . . . . . . . Flight 4 | . . . . . . . . . 1 . . . . . . . . . . . . 2 . . . . . . 1 Utility 209 | 3 4 4 12 2 . 3 . . 5 1 3 3 . 3 1 . 2 3 5 11 8 28 11 11 5 3 5 16 57 Device 86 | 1 . . 5 2 . 1 . . 4 . 1 . . 1 . . 1 . 2 1 6 9 3 4 3 1 4 7 30 Storage 27 | 1 2 . 1 . . . . . . . . . . . 1 . . . 1 . 1 3 3 3 1 1 . 1 8 Processor 22 | 1 . . 1 . . 1 . . . . 1 3 . . . . . . . . . 3 . . . . . 3 9 Hackware 21 | . . 1 . . . . . . . . . . . 1 . . 1 . 1 6 . 1 2 1 . . 1 5 1 Protection 53 | . 2 3 5 . . 1 . . 1 1 1 . . 1 . . . 3 1 4 1 12 3 3 1 1 . . 9 Artifact . | . . . . . . . . . . . . . . . . . . . . . . . . . . . . . . Weapon 292 | 3 19 11 15 9 . 4 . . 2 9 10 1 14 2 10 6 6 4 . 1 8 36 6 8 5 5 14 18 66 Energy Gun 23 | 1 5 . 1 . . . . . . . . . . . . . . . . . . 8 2 . . . 1 . 5 Energy Cannon 49 | . 2 4 11 4 . . . . . . . . . . . . . . . . 2 3 . 1 . 2 . 5 15 Ballistic Gun 152 | 2 2 . . 2 . 4 . . 1 6 8 1 11 1 10 5 6 4 . 1 2 14 3 6 5 3 12 9 34 Ballistic Cannon 20 | . 4 3 2 . . . . . . . . . . . . . . . . . 3 6 . . . . . . 2 Launcher 30 | . . 3 1 3 . . . . 1 3 2 . 3 1 . 1 . . . . . . . 1 . . 1 1 9 Special Weapon 10 | . 5 1 . . . . . . . . . . . . . . . . . . . 1 . . . . . 3 . Impact Weapon 7 | . 1 . . . . . . . . . . . . . . . . . . . 1 4 1 . . . . . . Slashing Weapon . | . . . . . . . . . . . . . . . . . . . . . . . . . . . . . . Piercing Weapon 1 | . . . . . . . . . . . . . . . . . . . . . . . . . . . . . 1 Special Melee Weapon . | . . . . . . . . . . . . . . . . . . . . . . . . . . . . . . Unidentified Prototypes 45 | . . . 4 . . 2 . . . 1 . . . . . . . 5 . . . 2 9 2 . . . 2 18 Parts Lost 136 | . 1 3 1 5 . . . 1 6 2 3 . 12 1 3 . 1 . 1 3 8 26 . 2 1 1 7 7 41 Power 13 | . . . . 1 . . . . 1 . . . 2 . . . . . . . 1 2 . . . . 1 1 4 Propulsion 33 | . . . . 2 . . . 1 2 1 2 . 4 1 2 . . . . . 4 3 . 1 . . 3 1 6 Utility 43 | . . 3 . 1 . . . . 3 1 . . . . . . 1 . 1 1 2 8 . 1 . 1 1 4 15 Weapon 47 | . 1 . 1 1 . . . . . . 1 . 6 . 1 . . . . 2 1 13 . . 1 . 2 1 16 Highest Loss Streak 18 | . 1 1 1 3 . . . 1 4 1 2 . 10 1 2 . 1 . 1 2 8 11 . 2 1 1 7 2 18 Average Slot Usage (%) 88 | . 99 97 98 97 100 99 100 99 95 99 99 100 94 98 86 88 87 87 87 77 55 84 85 83 83 83 88 91 80 Engine 3 | . 14 11 10 10 11 7 7 7 5 6 6 6 5 5 4 5 5 1 . . . . . . . . . . . Core 1 | . . . . . . . . . 1 . . . . . . . . . . . . 2 5 3 3 4 4 2 . Reactor 2 | . . . . . . . . . . . . . . . . . . 3 5 4 . 1 . 2 4 4 3 3 6 Treads 13 | . 27 22 21 17 12 30 30 29 9 9 23 26 23 21 6 11 11 11 11 11 11 2 . 8 13 12 4 6 10 Leg 5 | . . . . 4 9 . . . 18 14 2 . . . 5 . . . . . . 20 29 9 . . 10 10 . Device 10 | . 3 . 9 17 22 19 15 15 13 20 13 9 6 6 11 11 7 11 7 4 5 8 10 7 12 12 17 17 9 Storage 8 | . 13 11 11 11 11 7 7 7 7 6 6 6 6 5 2 5 5 5 7 10 1 . . 9 11 12 16 12 12 Processor 6 | . . . . . . . . . . . 5 12 20 17 17 17 17 17 17 . . 6 5 3 . . . 4 12 Hackware 5 | . . 1 11 11 11 7 7 7 1 . . . . 5 5 5 8 1 . 9 14 5 5 9 9 8 5 10 3 Protection 5 | . 10 29 11 3 . 3 7 7 11 5 5 3 . 3 . . . 3 5 4 2 10 6 4 4 7 4 2 4 Energy Cannon 2 | . . 8 20 13 . . . . . . . . . . . . . . . . 3 . . . . . . . 5 Ballistic Gun 17 | . 8 . . 7 22 22 23 23 22 32 32 33 29 29 27 29 29 28 29 27 . 12 15 21 21 19 18 16 9 Ballistic Cannon 1 | . 12 12 . . . . . . . . . . . . . . . . . . 5 1 . . . . . . . Naked Turns . | . . . . . . . . . . . . . . . . . . . . . . . . . . . . . . Heaviest Build 171 | 10 52 66 60 55 46 59 59 64 70 71 69 66 71 73 70 71 73 87 114 154 83 72 62 112 116 136 118 127 171 Greatest Support 255 | 40 40 40 46 40 43 89 86 86 80 106 108 80 100 100 140 140 140 160 160 160 110 173 155 225 225 220 220 210 255 Greatest Overweight (x) 29 | . 1 1 2 2 2 . . . 2 2 . . 13 1 3 . . . . . 4 3 . 1 . . 29 . 1 Average Overweight (x) . | . . 1 1 1 1 . . . . 1 . . . . . . . . . . . . . . . . . . . Largest Inventory Capacity 22 | 6 12 12 12 12 12 12 12 12 12 12 12 12 12 12 12 12 12 12 20 20 4 4 4 14 14 14 14 18 22 Average Capacity 12 | 4 11 12 12 12 12 12 12 12 12 12 12 12 12 12 7 12 12 12 15 18 4 4 4 11 14 14 14 16 18 Most Carried 22 | 4 12 12 12 12 12 12 12 12 12 12 12 12 12 12 12 12 12 12 20 19 4 4 4 14 14 14 14 18 22 Average Carried 11 | 2 10 11 11 10 8 11 12 11 11 11 10 12 9 10 5 10 11 11 14 13 3 3 2 9 13 11 13 14 16 Final Capacity 20 | 4 12 12 12 12 12 12 12 12 12 12 12 12 12 12 12 12 12 12 20 4 4 4 4 14 14 14 14 18 4 Final Carried 19 | 4 12 12 12 8 12 12 12 12 12 11 12 12 12 11 9 11 11 12 19 4 4 4 4 14 13 14 13 17 2 Class Distribution -------------------- 37% | Scavenger-Gunner 19% | Scavenger-Mutant 18% | Scavenger-Tank 12% | Mutant 3% | Bothacker-Tank Dominant Class ---------------- Mutant | -10/Materials Mutant | -9/Materials Mutant | -9/Storage Scavenger-Mutant | -9/Garrison Scavenger-Mutant | -9/Recycling Tank | -7/Factory Scavenger-Tank | -7/Garrison Scavenger-Tank | -7/Factory Scavenger-Tank | -7/Garrison Scavenger-Tank | -6/Factory Scavenger-Gunner | -6/Garrison Scavenger-Gunner | -6/Factory Scavenger-Gunner | -6/Garrison Scavenger-Gunner | -5/Factory Scavenger-Gunner | -5/Waste Scavenger-Gunner | -5/Factory Scavenger-Gunner | -5/Extension Scavenger-Gunner | -5/Cetus Scavenger-Gunner | -5/Archives Scavenger-Tank | -5/Hub_04(d) Hacker-Mutant | -4/Factory Scavenger-Mutant | -4/Armory Scavenger-Mutant | -4/Lab Hacker-Gunner | -3/Research Bothacker-Tank | -3/Garrison Scavenger-Tank | -2/Research Scavenger-Tank | -2/Garrison Scavenger-Gunner | -1/Access Scavenger-Gunner | -1/Command Resources | -11 -10 -9 -9 -9 -9 -7 -7 -7 -7 -6 -6 -6 -6 -5 -5 -5 -5 -5 -5 -5 -4 -4 -4 -3 -3 -2 -2 -1 -1 ----------- Run | Scr Mat Mat Sto Gar Rec Fac Gar Fac Gar Fac Gar Fac Gar Fac Was Fac Ext Cet Arc Hub Fac Arm Lab Res Gar Res Gar Acc Com Matter Collected 22981 | 333 515 402 478 120 145 120 222 219 525 772 900 100 619 191 927 456 607 358 447 751 288 2083 347 1729 1491 932 1053 1225 4626 Remotely 498 | . . . . . . . . . . . . . . . . . . . . . . 309 . . . . . . 189 Salvage Created 30933 | 122 640 568 977 330 165 226 222 305 671 1146 936 137 758 209 1738 688 857 297 605 1225 270 1685 90 2359 1772 1110 1291 1725 7809 Parts 1372 | 10 56 43 49 19 5 15 12 18 31 64 47 12 38 7 24 33 31 17 38 64 8 85 13 138 54 46 48 76 271 Haulers Intercepted 15 | . 2 2 5 . . 1 . . . 2 . 1 . . . . . . . . . . . 2 . . . . . Recyclers Shooed 15 | 1 1 2 2 . . . . . . 1 . . . . . . 1 . . . . . . 1 . 1 . 2 3 Parts Field Recycled . | . . . . . . . . . . . . . . . . . . . . . . . . . . . . . . Retrieved Matter . | . . . . . . . . . . . . . . . . . . . . . . . . . . . . . . Parts Self-Destructed . | . . . . . . . . . . . . . . . . . . . . . . . . . . . . . . Prevented . | . . . . . . . . . . . . . . . . . . . . . . . . . . . . . . Kills | -11 -10 -9 -9 -9 -9 -7 -7 -7 -7 -6 -6 -6 -6 -5 -5 -5 -5 -5 -5 -5 -4 -4 -4 -3 -3 -2 -2 -1 -1 ------- Run | Scr Mat Mat Sto Gar Rec Fac Gar Fac Gar Fac Gar Fac Gar Fac Was Fac Ext Cet Arc Hub Fac Arm Lab Res Gar Res Gar Acc Com Combat Hostiles Destroyed 415 | . 17 18 13 13 1 3 6 7 15 22 22 1 18 4 6 12 13 3 4 13 2 34 1 21 20 11 23 16 76 Melee 6 | . . 1 . . 1 . . . . . . . . . . . . . . . . . . . 1 . 2 . 1 Guns 272 | . 10 . . 1 . 3 6 7 14 18 15 1 12 4 6 11 13 3 4 12 . 27 1 21 19 11 15 14 24 Cannons 57 | . 7 10 13 5 . . . . . . . . . . . . . . . . 2 5 . . . . . . 15 AOE 54 | . . 7 . 7 . . . . 1 4 6 . 5 . . 1 . . . . . 2 . . . . 6 . 15 Classes Destroyed 24 | 3 5 2 1 1 1 . 1 . . 2 1 . . . 1 1 . . . 1 . . . . . . . . 4 Worker 46 | 1 2 1 3 . . 1 . . . 6 . 1 . . . 1 . . . 11 . . . 8 . . . 2 9 Builder 9 | . . . . . . . . . . 3 . . . . . . . . . 2 . . . . . 1 . 3 . Tunneler 5 | 2 . . . . . . . . . . . . . . . . . . . . 1 . . 2 . . . . . Hauler 15 | . 2 2 5 . . 1 . . . 2 . 1 . . . . . . . . . . . 2 . . . . . Recycler 22 | 1 . 2 1 . 2 . . . . 1 . . . 1 . . . . . . 2 . . 1 . 1 . 3 7 Mechanic 2 | . . . 1 . . . . . . . . . . . . . . . . . . 1 . . . . . . . Operator 10 | . 1 . . . . 1 . . . . . . . . . . 1 . 7 . . . . . . . . . . Drone 2 | . . . . . 1 . . . . . . . . . . . . . . . . . . . . . . . 1 Watcher 6 | . 1 2 . . . . . . . . . 1 . . . . . . . . . . . . . . . . 2 Swarmer 109 | . 3 9 4 4 . . 3 3 4 16 11 1 7 4 . 4 . . . . 2 13 . . . . 8 2 11 Saboteur 2 | . . . . . . . . . . . . . . . . . . . . . . . . . . . . . 2 Grunt 144 | . 14 7 . 8 . 3 2 1 8 3 5 . 5 . . 8 7 . . 2 . 7 . 12 14 3 9 2 24 Brawler 8 | . . 1 . . . . . . . . . . . . . . . . . 1 . 4 . . . 1 . 1 . Duelist 3 | . . . . 1 . . . 1 1 . . . . . . . . . . . . . . . . . . . . Protector 4 | . . . . . . . . . . . . . . . . . . . . 4 . . . . . . . . . Sentry 43 | . . 1 9 . . . . 2 2 1 4 . 2 . . . 4 . 4 . . 2 . 4 3 . . 2 3 Hunter 27 | . . . . . . . 1 . . . 1 . 3 . . . 1 . . 1 . 2 . . 2 4 4 2 6 Programmer 37 | . . . . . . . . . . 2 . . . . . . . . . . . 6 . 5 . 3 2 3 16 Behemoth 4 | . . . . . . . . . . . 1 . 1 . . . 1 . . . . . . . 1 . . . . Compactor 6 | . . . . . . . . . . . . . . . 6 . . . . . . . . . . . . . . Cetus Guard 3 | . . . . . . . . . . . . . . . . . . 3 . . . . . . . . . . . M Guard 2 | . . . . . . . . . . . . . . . . . . . . . . . . . . . . . 2 Lightning 5 | . . . . . . . . . . . . . . . . . . . . 5 . . . . . . . . . Tracker 2 | . . . . . . . . . . . . . . . . . . . . . . . . . . . . 2 . Combat Programmer 4 | . . . . . . . . . . . . . . . . . . . . . . . . . . . . 2 2 Striker 2 | . . . . . . . . . . . . . . . . . . . . . . . . . . . . . 2 Executioner 3 | . . . . . . . . . . . . . . . . . . . . . . . . . . . . . 3 Alpha 7 2 | . . . . . . . . . . . . . . . . . . . . . . . . . . . . . 2 Thug 1 | . . . . . . . . . . . . . . . 1 . . . . . . . . . . . . . . Martyr 2 | . . . . . . . . . . . . . . . . 2 . . . . . . . . . . . . . Best Kill Streak 21 | 1 3 17 5 6 3 3 4 3 9 21 7 2 11 4 1 5 5 3 6 20 2 8 1 8 6 4 10 5 9 Combat Bots Only 14 | . 3 14 5 6 1 2 4 3 9 13 7 1 11 4 1 5 5 3 2 9 2 8 1 8 6 4 10 4 9 Max Kills in Single Turn 6 | 1 1 3 1 2 1 1 1 2 1 6 3 1 2 2 1 2 2 1 1 6 1 2 1 2 1 2 3 3 3 Gunslinging 1 | . . . . . . . . 1 . 1 1 . 1 1 . 1 . . . 1 . . . 1 . 1 1 . . Exploded 3 | . . 3 . 2 . . . . 1 2 3 . 2 . . 1 . . . . . 2 . . . . 3 . 3 Melee 1 | . . 1 . . 1 . . . . . . . . . . . . . . . . . . . 1 . 1 . 1 Uniques/NPCs Destroyed 4 | . . . . . . . . . . . . . . . . . . 1 . . . . 1 . . . . . 2 A7 (-5/Cetus) A5 (-4/Lab) MAIN.C Shell (-1/Command) MAIN.C (-1/Command) Combat | -11 -10 -9 -9 -9 -9 -7 -7 -7 -7 -6 -6 -6 -6 -5 -5 -5 -5 -5 -5 -5 -4 -4 -4 -3 -3 -2 -2 -1 -1 -------- Run | Scr Mat Mat Sto Gar Rec Fac Gar Fac Gar Fac Gar Fac Gar Fac Was Fac Ext Cet Arc Hub Fac Arm Lab Res Gar Res Gar Acc Com Damage Taken 47237 | . 842 823 728 515 . 37 232 270 1049 843 1066 12 2240 204 149 450 440 86 390 2579 2100 5321 453 2131 2029 1279 1543 3721 15705 Core 3550 | . 194 31 136 47 . . 11 21 68 116 128 12 270 . . 38 . . . 127 86 511 54 24 129 35 259 70 1183 Absorbed by Shields 9879 | . . . . 57 . 14 88 106 59 . . . . . . . . 82 . . 36 12 . 387 1270 1343 752 139 5534 Reduced by Siege Mode 1799 | . . . . . . . . . . . . . . . . . 16 7 50 29 39 318 . 20 72 43 33 199 973 Core Remaining (%) 60 | 100 22 . . . 46 . . . 85 . . . 38 . . . . . . 83 . . 43 . 83 . 79 . 21 Volleys Fired 1239 | 23 65 39 83 27 10 10 11 13 33 41 45 3 33 6 36 18 25 13 20 43 16 96 44 48 57 44 40 59 238 Largest 5 | 1 2 2 2 2 2 3 3 3 3 5 5 5 5 5 5 5 5 5 5 5 3 5 3 5 5 5 5 5 5 Hottest 570 | 50 136 136 136 112 46 71 71 71 71 125 125 125 127 127 142 135 155 155 151 161 171 341 120 200 188 173 171 240 570 Shots Fired 3858 | 23 123 71 140 43 20 30 33 39 95 189 161 15 96 26 172 86 125 65 100 177 29 239 66 219 251 188 156 186 695 Gun 3083 | 23 78 . . 16 20 30 33 39 93 185 155 15 87 25 172 85 125 65 100 177 4 203 66 218 251 180 148 160 330 Cannon 667 | . 38 62 139 22 . . . . . . . . . . . . . . . . 25 36 . 1 . 8 . 11 325 Launcher 89 | . . 8 1 5 . . . . 2 4 6 . 9 1 . 1 . . . . . . . . . . 8 4 40 Special 19 | . 7 1 . . . . . . . . . . . . . . . . . . . . . . . . . 11 . Kinetic 3130 | 19 98 52 19 16 20 30 33 39 93 185 155 15 87 25 172 85 125 65 100 177 22 186 34 218 251 180 148 160 321 Thermal 555 | 4 25 11 120 . . . . . . . . . . . . . . . . . 7 24 32 1 . 8 . 11 312 Explosive 36 | . . 8 1 5 . . . . . 2 1 . 4 1 . 1 . . . . . . . . . . 8 . 5 Electromagnetic 126 | . . . . 22 . . . . 2 2 5 . 5 . . . . . . . . 29 . . . . . 4 57 Robot Hit Streak 83 | 5 14 8 12 8 4 7 7 21 23 19 24 20 37 19 32 26 33 16 29 17 13 23 13 31 34 23 32 38 83 Robot Miss Streak 6 | 3 4 3 3 3 2 1 1 2 1 4 3 3 4 6 5 4 3 1 1 4 1 3 4 4 3 3 3 3 3 Penetration Max 2 | . . . . . . . . . . . 1 . . 1 . 1 1 . 1 1 . 1 . 2 2 1 1 1 1 Secondary Targets 66 | . . . . . . 1 1 1 5 4 5 . 4 2 . 3 1 2 . 8 . 3 . 6 5 5 4 3 3 Max Gunslinging Chain 2 | . . . . . . 1 1 1 1 1 2 . 1 1 . 1 1 1 . 2 . 1 . 1 1 2 1 1 1 Shots Hit Robots 2708 | 13 78 39 72 26 13 17 23 26 82 113 114 8 77 17 144 61 78 56 71 112 16 138 45 145 208 139 106 124 547 Core Hits 1305 | 5 33 30 24 18 4 8 9 14 30 54 48 6 64 11 50 52 48 19 25 68 7 76 18 80 62 42 53 66 281 Critical Hits 311 | . . 1 11 . . . 1 . . 3 . 1 1 . 7 4 9 9 17 25 4 24 4 63 46 16 14 7 44 Critical Kills 95 | . . . 1 . . . . . . 1 . 1 . . 1 2 3 2 6 7 1 12 . 26 10 4 7 1 10 Critical Parts Destroyed 168 | . . 1 10 . . . 1 . . 2 . . 1 . 1 2 5 6 9 16 3 8 3 31 22 12 7 5 23 Melee Attacks 74 | . 1 . . . . . . . . . . . . . . . . . . . . 14 58 . . . . . 1 Impact 73 | . 1 . . . . . . . . . . . . . . . . . . . . 14 58 . . . . . . Slashing . | . . . . . . . . . . . . . . . . . . . . . . . . . . . . . . Piercing 1 | . . . . . . . . . . . . . . . . . . . . . . . . . . . . . 1 Sneak Attacks . | . . . . . . . . . . . . . . . . . . . . . . . . . . . . . . Combat Hostiles . | . . . . . . . . . . . . . . . . . . . . . . . . . . . . . . Follow-up Attacks . | . . . . . . . . . . . . . . . . . . . . . . . . . . . . . . Damage Inflicted 75558 | 192 1195 1582 1750 1085 199 337 438 535 1776 2697 2323 158 2220 392 4423 1622 2197 1393 1625 3976 460 3290 876 1818 3816 2676 3812 3240 23455 Guns 45389 | 191 622 . . 117 174 327 438 508 1562 1827 1731 150 1050 374 4423 1390 2187 1375 1598 3145 78 2107 507 1696 3763 2631 2336 2839 6243 Cannons 15867 | . 505 832 1625 273 . . . . . . . . . . . . . . . . 377 880 . . . . . . 11375 Explosions 12965 | . . 713 49 695 . . . . 214 870 592 . 1170 . . 200 . . . 810 . 260 . . . . 1434 372 5586 Melee 369 | . . . . . . . . . . . . . . . . . . . . . . . 369 . . . . . . Ramming 968 | 1 68 37 76 . 25 10 . 27 . . . 8 . 18 . 32 10 18 27 21 5 43 . 122 53 45 42 29 251 Kinetic 46752 | 165 968 730 . 117 174 327 438 508 1562 1827 1731 150 1050 374 4423 1390 2187 1375 1598 3145 375 2057 56 1696 3763 2631 2336 2839 6760 Thermal 14758 | 26 159 102 1625 34 . . . . . . . . . . . . . . . . 80 884 451 . . . . 74 11323 Explosive 6963 | . . 713 49 661 . . . . . 773 264 . 831 . . 200 . . . . . . . . . . 1434 . 2038 Electromagnetic 5748 | . . . . 273 . . . . 214 97 328 . 339 . . . . . . 810 . 306 . . . . . 298 3083 Impact 369 | . . . . . . . . . . . . . . . . . . . . . . . 369 . . . . . . Slashing . | . . . . . . . . . . . . . . . . . . . . . . . . . . . . . . Piercing . | . . . . . . . . . . . . . . . . . . . . . . . . . . . . . . Highest Corruption 61 | . . . . . . . . . . 1 1 1 1 . . . . . . 15 . 14 22 3 3 6 8 4 61 Average Corruption 15 | . . . . . . . . . . 1 1 1 1 . . . . . . 6 . 11 17 2 3 5 7 3 31 Corruption Purged 1 | . . . . . . . . . . . . . . . . . . . . . . . . . . . . . 1 Effects 672 | . . . . . . . . . . 2 2 1 2 . . . . . . 16 . 53 64 9 19 5 32 12 455 Message Errors 107 | . . . . . . . . . . 1 . 1 2 . . . . . . 3 . 12 7 3 5 . 10 3 60 Matter Fused 67 | . . . . . . . . . . . . . . . . . . . . 1 . 10 9 1 1 . 5 . 40 Heat Flow Errors 31 | . . . . . . . . . . . . . . . . . . . . . . 1 2 . 1 1 4 3 19 Energy Discharges 40 | . . . . . . . . . . . . . . . . . . . . . . 2 5 1 2 . 3 1 26 Parts Rejected 7 | . . . . . . . . . . . . . . . . . . . . . . 1 1 . . 1 1 . 3 Data Loss (minor) 28 | . . . . . . . . . . . . . . . . . . . . . . 3 5 . 2 1 1 2 14 Data Loss (major) 11 | . . . . . . . . . . . . . . . . . . . . . . 1 1 . . . 1 . 8 Misfires 11 | . . . . . . . . . . . . . . . . . . . . . . . 3 . . . 1 . 7 Alerts 1 | . . . . . . . . . . . . . . . . . . . . . . . . . . . . . 1 Misdirections 77 | . . . . . . . . . . . . . . . . . . . . 1 . 3 7 . . . . . 66 Targeting Errors 239 | . . . . . . . . . . 1 . . . . . . . . . 9 . 15 21 4 6 2 5 2 174 Weapon Failures 53 | . . . . . . . . . . . 2 . . . . . . . . 2 . 5 3 . 2 . 1 1 37 Overload Shots . | . . . . . . . . . . . . . . . . . . . . . . . . . . . . . . Overflow Damage 1064 | . . 46 34 42 . . . . . 29 . . 57 33 . . . . . 31 21 11 . . . 25 96 . 639 Projectiles 381 | . . 2 34 . . . . . . . . . . . . . . . . . 21 6 . . . . . . 318 Explosions 639 | . . 44 . 42 . . . . . 29 . . 57 33 . . . . . 31 . 5 . . . . 96 . 302 Melee 44 | . . . . . . . . . . . . . . . . . . . . . . . . . . 25 . . 19 Knockbacks 34 | . 1 7 1 . . . . 1 . . . . . 1 . . . . . . 2 8 4 1 . . . . 8 Impact 10 | . . . 1 . . . . 1 . . . . . 1 . . . . . . . . 4 1 . . . . 2 Kinetic 24 | . 1 7 . . . . . . . . . . . . . . . . . . 2 8 . . . . . . 6 Secondary . | . . . . . . . . . . . . . . . . . . . . . . . . . . . . . . Self-Inflicted Damage 1680 | . . 120 106 160 . . . . . 40 18 . 123 48 . . . . . 10 . 99 . . . . 65 26 865 Shots 67 | . . 3 3 4 . . . . . 1 1 . 6 1 . . . . . 1 . 1 . . . . 2 4 40 Rammed 82 | 4 12 3 10 . 1 . . 3 . . . . . 2 . 2 2 2 2 4 1 . . 3 6 3 1 3 18 Targets Rammed 119 | 4 14 4 10 . 3 1 . 3 . . . 1 . 2 . 2 2 2 2 4 1 15 . 13 7 3 2 4 20 Kicked 24 | . . . . . . . . . . . . . . . . . . . . . . 14 . 8 . . 1 1 . Crushed 13 | . 2 1 . . 2 1 . . . . . 1 . . . . . . . . . 1 . 2 1 . . . 2 Highest Temperature 582 | 40 165 295 261 196 . . 2 8 81 . 199 66 196 84 103 190 220 198 194 320 122 174 217 377 355 238 582 166 358 Average Temperature 90 | 20 46 89 105 96 . . 2 6 39 . 65 31 67 34 35 68 65 138 93 107 43 42 83 58 140 118 113 30 114 Received Heat Transfer 4975 | . 405 171 153 99 . 18 18 40 321 9 219 . 459 . . 129 63 . 54 387 408 537 . 368 264 40 102 8 703 Effects 11 | . . . . . . . . . . . . . . . . . . . . . . . . 1 3 . 7 . . Shutdowns 4 | . . . . . . . . . . . . . . . . . . . . . . . . 1 . . 3 . . Energy Bleed 1 | . . . . . . . . . . . . . . . . . . . . . . . . . 1 . . . . Interference 2 | . . . . . . . . . . . . . . . . . . . . . . . . . 2 . . . . Damage (minor) 2 | . . . . . . . . . . . . . . . . . . . . . . . . . . . 2 . . Damage (major) 1 | . . . . . . . . . . . . . . . . . . . . . . . . . . . 1 . . Damage (core) 1 | . . . . . . . . . . . . . . . . . . . . . . . . . . . 1 . . Siege Activations 66 | . . . . . . . . . . . . . . . . . 4 1 5 4 2 2 . 4 7 4 6 3 24 Total Turns 1194 | . . . . . . . . . . . . . . . . . 37 35 91 65 24 43 . 45 94 61 46 80 573 Longest Duration 129 | . . . . . . . . . . . . . . . . . 17 35 39 32 18 39 . 16 38 18 17 55 129 Robots Corrupted 26 | . . . . . . . . . . 1 1 . 1 . . . . . . 2 . . . . . . . 2 19 Combat Hostiles 24 | . . . . . . . . . . . 1 . 1 . . . . . . 1 . . . . . . . 2 19 Parts Fried 77 | . . . . . . . . . . 2 3 . 4 . . . . . . 17 . 2 . . . . . 5 44 Impact Corruptions 2 | . . . . . . . . . . . . . . . . . . . . . . . . . . 1 . . 1 Robots Melted 1 | . . . . . . . . . . . . . . . . . . . . . . . . . . . . . 1 Combat Hostiles 1 | . . . . . . . . . . . . . . . . . . . . . . . . . . . . . 1 Parts Melted 25 | . 1 1 5 . . . . . . . . . . . . . 1 . . 3 . 1 . . 3 . . . 10 Heat Transferred 11389 | 74 444 185 2923 50 . . . . . . . . . . . . . . . . 50 729 1400 . . . . 100 5434 Parts Sabotaged 11 | . . . . . . . . . . . . . . . . . . . . . . 5 . . . . . . 6 Parts Stolen . | . . . . . . . . . . . . . . . . . . . . . . . . . . . . . . Parts Stripped . | . . . . . . . . . . . . . . . . . . . . . . . . . . . . . . Power Chain Reactions 10 | . . . . 1 . . . . 1 . . . . . . . . . . . . . . . . . . 1 7 Missiles Intercepted 7 | . . . . . . . . . . . . . . . . . . . . . . . . . . . . . 7 Alert | -11 -10 -9 -9 -9 -9 -7 -7 -7 -7 -6 -6 -6 -6 -5 -5 -5 -5 -5 -5 -5 -4 -4 -4 -3 -3 -2 -2 -1 -1 ------- Run | Scr Mat Mat Sto Gar Rec Fac Gar Fac Gar Fac Gar Fac Gar Fac Was Fac Ext Cet Arc Hub Fac Arm Lab Res Gar Res Gar Acc Com Peak Influence 1199 | 20 345 723 372 385 324 1045 653 496 678 780 936 545 786 545 190 399 281 156 280 1026 658 682 . 463 989 647 1114 704 1199 Initial 951 | . 13 145 304 . 172 951 483 342 305 355 441 491 381 412 190 . 195 48 62 98 499 168 . . 324 555 475 668 249 Average 404 | 9 168 517 145 228 257 902 576 407 499 384 759 512 659 502 69 105 170 139 216 579 516 411 . 167 713 575 872 396 534 Maximum Alert Level 4 | . 1 3 1 1 1 3 2 2 2 3 3 2 3 2 . 1 1 . 1 3 2 2 . 2 3 2 4 3 4 Low Security (%) 29 | 100 62 14 69 31 20 . . . . 7 . . . . 100 81 62 100 27 39 . 4 . 62 . . . . 16 Level 1 26 | . 37 17 30 68 80 . . 33 25 58 . . 7 . . 18 37 . 72 . 7 53 . 32 20 . . 68 18 Level 2 23 | . . 41 . . . 12 100 66 74 29 26 100 31 100 . . . . . . 92 42 . 4 25 100 33 30 17 Level 3 14 | . . 26 . . . 87 . . . 4 73 . 60 . . . . . . 60 . . . . 54 . 56 1 17 Level 4 5 | . . . . . . . . . . . . . . . . . . . . . . . . . . . 9 . 29 Level 5 . | . . . . . . . . . . . . . . . . . . . . . . . . . . . . . . High Security . | . . . . . . . . . . . . . . . . . . . . . . . . . . . . . . Max Security . | . . . . . . . . . . . . . . . . . . . . . . . . . . . . . . Squads Dispatched 59 | . 5 1 2 . . 2 . 1 . 5 . . . . . 1 1 . . 4 . 4 . 6 . 6 . 5 16 Investigation 11 | . 4 . 2 . . . . . . . . . . . . 1 . . . 1 . 1 . 1 . 1 . . . Extermination 16 | . . . . . . . . . . . . . . . . . . . . . . 3 . 2 . 1 . 1 9 Reinforcement 13 | . 1 1 . . . 1 . 1 . 3 . . . . . . 1 . . 2 . . . . . 1 . 1 1 Assault 8 | . . . . . . 1 . . . . . . . . . . . . . 1 . . . . . . . . 6 Garrison 5 | . . . . . . . . . . 2 . . . . . . . . . . . . . 3 . . . . . Intercept 6 | . . . . . . . . . . . . . . . . . . . . . . . . . . 3 . 3 . Construction Impeded 3 | . . 1 . . . . . . . 1 . . . . . . . . . 1 . . . . . . . . . Haulers Reinforced 1 | . . . . . . . . . . 1 . . . . . . . . . . . . . . . . . . . Stealth | -11 -10 -9 -9 -9 -9 -7 -7 -7 -7 -6 -6 -6 -6 -5 -5 -5 -5 -5 -5 -5 -4 -4 -4 -3 -3 -2 -2 -1 -1 --------- Run | Scr Mat Mat Sto Gar Rec Fac Gar Fac Gar Fac Gar Fac Gar Fac Was Fac Ext Cet Arc Hub Fac Arm Lab Res Gar Res Gar Acc Com Distress Signals 43 | . 2 4 1 . . . . . . 1 . 1 . . . . 1 1 . . . 4 . 2 . . . . 26 Communications Jammed 56 | . . . . . . . . . . . . . . . . . . . . 28 17 . . . . . . 11 . Distress Signals 56 | . . . . . . . . . . . . . . . . . . . . 28 17 . . . . . . 11 . Times Spotted 658 | . 28 27 20 16 16 4 7 9 21 28 22 2 21 5 6 16 22 5 12 40 23 55 1 27 34 20 34 26 111 Peak Tracking Total 19 | . 4 7 4 5 7 2 5 3 5 6 6 2 15 5 2 5 5 5 1 19 12 9 1 6 8 6 8 6 12 Tactical Retreats 57 | . 2 1 . 3 . . 1 . 3 2 . . 2 1 . . . . . 2 2 2 . 3 10 1 8 1 13 Traps | -11 -10 -9 -9 -9 -9 -7 -7 -7 -7 -6 -6 -6 -6 -5 -5 -5 -5 -5 -5 -5 -4 -4 -4 -3 -3 -2 -2 -1 -1 ------- Run | Scr Mat Mat Sto Gar Rec Fac Gar Fac Gar Fac Gar Fac Gar Fac Was Fac Ext Cet Arc Hub Fac Arm Lab Res Gar Res Gar Acc Com Traps Triggered 63 | . 2 . 4 2 . . . . 1 3 4 . . 1 . . 1 . . 1 1 4 . 2 . . . 1 36 Indirectly 36 | . . . . . . . . . . 3 4 . . . . . . . . . . . . . . . . . 29 Trap Hack Attempts . | . . . . . . . . . . . . . . . . . . . . . . . . . . . . . . Triggered . | . . . . . . . . . . . . . . . . . . . . . . . . . . . . . . Disarmed . | . . . . . . . . . . . . . . . . . . . . . . . . . . . . . . Reprogrammed 7 | . . . . . . . . . . . . . . . . . . . . . . 7 . . . . . . . Reused 2 | . . . . . . . . . . . . . . . . . . . . . . 2 . . . . . . . Traps Extracted . | . . . . . . . . . . . . . . . . . . . . . . . . . . . . . . Installed . | . . . . . . . . . . . . . . . . . . . . . . . . . . . . . . Triggered 6 | . . . . . . . . . . . . . . . . . . . . . . 2 . . . . . . 4 Machines | -11 -10 -9 -9 -9 -9 -7 -7 -7 -7 -6 -6 -6 -6 -5 -5 -5 -5 -5 -5 -5 -4 -4 -4 -3 -3 -2 -2 -1 -1 ---------- Run | Scr Mat Mat Sto Gar Rec Fac Gar Fac Gar Fac Gar Fac Gar Fac Was Fac Ext Cet Arc Hub Fac Arm Lab Res Gar Res Gar Acc Com Machines Disabled 64 | . 2 1 5 . . . . . . 5 . . 1 . . 2 4 1 2 14 1 10 4 1 1 . 1 1 8 Max in Single Turn 14 | . 1 1 2 . . . . . . 2 . . 1 . . 1 1 1 1 14 1 1 1 1 1 . 1 1 2 Garrison Access 2 | . . . . . . . . . . . . . . . . . . . . 1 1 . . . . . . . . Garrison Relay 3 | . . . . . . . . . . . . . 1 . . . . . . . . . . . 1 . 1 . . Network Hub 1 | . . . . . . . . . . . . . . . . . . . . 1 . . . . . . . . . Energy Cycler 1 | . . . . . . . . . . . . . . . . . . . . . . 1 . . . . . . . Machines Sabotaged . | . . . . . . . . . . . . . . . . . . . . . . . . . . . . . . Garrisons Compromised . | . . . . . . . . . . . . . . . . . . . . . . . . . . . . . . Overloaded Fab Kills . | . . . . . . . . . . . . . . . . . . . . . . . . . . . . . . Fab Network Shutdowns . | . . . . . . . . . . . . . . . . . . . . . . . . . . . . . . Hacking | -11 -10 -9 -9 -9 -9 -7 -7 -7 -7 -6 -6 -6 -6 -5 -5 -5 -5 -5 -5 -5 -4 -4 -4 -3 -3 -2 -2 -1 -1 --------- Run | Scr Mat Mat Sto Gar Rec Fac Gar Fac Gar Fac Gar Fac Gar Fac Was Fac Ext Cet Arc Hub Fac Arm Lab Res Gar Res Gar Acc Com Machines Accessed 85 | . 9 1 15 . 5 4 . 4 . 3 . 1 . 1 . 2 6 . . 1 5 9 . 6 . 4 . 7 2 Terminals 58 | . 6 1 12 . 1 3 . 3 . 2 . . . 1 . 2 6 . . 1 3 4 . 2 . 3 . 7 1 Fabricators 4 | . . . . . . . . . . . . . . . . . . . . . 1 2 . 1 . . . . . Repair Stations 3 | . 1 . . . . . . . . . . . . . . . . . . . . 2 . . . . . . . Recycling Units 10 | . 2 . 2 . 4 . . . . . . . . . . . . . . . . 1 . . . . . . 1 Scanalyzers 2 | . . . . . . . . . . . . . . . . . . . . . . . . 2 . . . . . Garrison Access 8 | . . . 1 . . 1 . 1 . 1 . 1 . . . . . . . . 1 . . 1 . 1 . . . Total Hacks 287 | . 22 2 46 . 15 7 . 11 . 7 . 2 . 4 . 8 12 . . 7 21 38 . 28 . 31 . 21 5 Successful 155 | . 11 2 29 . 10 4 . 6 . 5 . 2 . 2 . 3 8 . . 4 10 24 . 15 . 10 . 8 2 Failed 132 | . 11 . 17 . 5 3 . 5 . 2 . . . 2 . 5 4 . . 3 11 14 . 13 . 21 . 13 3 Catastrophic 22 | . 1 . 3 . . 2 . . . . . . . . . . . . . 1 2 . . 5 . 6 . 2 . Database Lockouts . | . . . . . . . . . . . . . . . . . . . . . . . . . . . . . . Manual 131 | . 9 1 23 . 4 3 . 7 . 4 . . . 4 . 3 4 . . 5 13 16 . 6 . 22 . 5 2 Terminals 218 | . 16 2 43 . 5 5 . 9 . 5 . . . 4 . 8 12 . . 7 15 21 . 16 . 28 . 21 1 Fabricators 19 | . . . . . . . . . . . . . . . . . . . . . 4 11 . 4 . . . . . Repair Stations 6 | . 2 . . . . . . . . . . . . . . . . . . . . 4 . . . . . . . Recycling Units 22 | . 4 . 2 . 10 . . . . . . . . . . . . . . . . 2 . . . . . . 4 Scanalyzers 5 | . . . . . . . . . . . . . . . . . . . . . . . . 5 . . . . . Garrison Access 17 | . . . 1 . . 2 . 2 . 2 . 2 . . . . . . . . 2 . . 3 . 3 . . . Terminal Hacks 81 | . 3 2 24 . 2 2 . 3 . 3 . . . 1 . 3 7 . . 2 5 8 . 4 . 4 . 7 1 Part Schematic 2 | . . . 1 . . . . . . . . . . . . . . . . . 1 . . . . . . . . Robot Schematic 1 | . . . 1 . . . . . . . . . . . . . . . . . . . . . . . . . . Robot Analysis 3 | . . . 1 . . . . . . . . . . . . . . . . . . 1 . 1 . . . . . Prototype ID Bank 7 | . 1 . 2 . . . . 1 . . . . . . . 2 . . . . 1 . . . . . . . . Open Door 11 | . . . 3 . . . . . . . . . . . . . 3 . . . . . . . . . . 4 1 Branch Access Points 6 | . . 1 . . . . . 1 . 1 . . . . . 1 . . . . 1 . . . . . . 1 . Terminal Index 6 | . . . 1 . . 1 . . . . . . . 1 . . 1 . . 1 . 1 . . . . . . . Garrison Index 5 | . . . 2 . . . . . . . . . . . . . . . . 1 . . . . . 1 . 1 . Alert Level 5 | . . 1 3 . 1 . . . . . . . . . . . . . . . . . . . . . . . . Unreport Threat 11 | . . . 5 . . 1 . 1 . 1 . . . . . . 1 . . . 1 1 . . . . . . . Locate Traps 8 | . 1 . . . . . . . . 1 . . . . . . 2 . . . . 2 . . . 1 . 1 . Reprogram Traps 2 | . . . . . . . . . . . . . . . . . . . . . . 2 . . . . . . . Dispatch Records 1 | . . . 1 . . . . . . . . . . . . . . . . . . . . . . . . . . Patrol Status 3 | . 1 . 1 . . . . . . . . . . . . . . . . . . . . 1 . . . . . Hauler Manifests 3 | . . . 1 . . . . . . . . . . . . . . . . . . . . 1 . 1 . . . Zone Layout 7 | . . . 2 . 1 . . . . . . . . . . . . . . . 1 1 . 1 . 1 . . . Fabricator Hacks 8 | . . . . . . . . . . . . . . . . . . . . . 2 5 . 1 . . . . . Load Schematic 4 | . . . . . . . . . . . . . . . . . . . . . 1 2 . 1 . . . . . Build 4 | . . . . . . . . . . . . . . . . . . . . . 1 3 . . . . . . . Repair Station Hacks 4 | . 2 . . . . . . . . . . . . . . . . . . . . 2 . . . . . . . Scan Component 1 | . 1 . . . . . . . . . . . . . . . . . . . . . . . . . . . . Repair 1 | . 1 . . . . . . . . . . . . . . . . . . . . . . . . . . . . Refit 2 | . . . . . . . . . . . . . . . . . . . . . . 2 . . . . . . . Recycling Unit Hacks 8 | . 2 . . . 4 . . . . . . . . . . . . . . . . 1 . . . . . . 1 Report Inventory 6 | . 2 . . . 4 . . . . . . . . . . . . . . . . . . . . . . . . Retrieve Components 2 | . . . . . . . . . . . . . . . . . . . . . . 1 . . . . . . 1 Scanalyzer 5 | . . . . . . . . . . . . . . . . . . . . . . . . 5 . . . . . Insert Component 4 | . . . . . . . . . . . . . . . . . . . . . . . . 4 . . . . . Analyze 1 | . . . . . . . . . . . . . . . . . . . . . . . . 1 . . . . . Garrison Access Hacks 14 | . . . 1 . . 2 . 2 . 2 . 2 . . . . . . . . 2 . . 2 . 1 . . . Unlock Access 7 | . . . 1 . . 1 . 1 . 1 . 1 . . . . . . . . . . . 1 . 1 . . . Seal Access 1 | . . . . . . . . . . . . . . . . . . . . . 1 . . . . . . . . Coupler Status 6 | . . . . . . 1 . 1 . 1 . 1 . . . . . . . . 1 . . 1 . . . . . Unauthorized Hacks 35 | . 4 . 4 . 4 . . 1 . . . . . 1 . . 1 . . 2 1 8 . 3 . 5 . 1 . Terminals 24 | . 2 . 2 . . . . 1 . . . . . 1 . . 1 . . 2 . 7 . 2 . 5 . 1 . Track 5 | . 2 . . . . . . . . . . . . . . . . . . . . 2 . . . 1 . . . Assimilate 3 | . . . . . . . . 1 . . . . . . . . . . . . . 1 . . . 1 . . . Botnet 12 | . . . 2 . . . . . . . . . . 1 . . 1 . . 1 . 2 . 1 . 3 . 1 . Disrupt 1 | . . . . . . . . . . . . . . . . . . . . . . 1 . . . . . . . Operators 3 | . . . . . . . . . . . . . . . . . . . . 1 . 1 . 1 . . . . . Fabricators 2 | . . . . . . . . . . . . . . . . . . . . . 1 1 . . . . . . . Prioritize 2 | . . . . . . . . . . . . . . . . . . . . . 1 1 . . . . . . . Repair Stations . | . . . . . . . . . . . . . . . . . . . . . . . . . . . . . . Recycling Units 8 | . 2 . 2 . 4 . . . . . . . . . . . . . . . . . . . . . . . . Tunnel 8 | . 2 . 2 . 4 . . . . . . . . . . . . . . . . . . . . . . . . Scanalyzers . | . . . . . . . . . . . . . . . . . . . . . . . . . . . . . . Garrison Access 1 | . . . . . . . . . . . . . . . . . . . . . . . . 1 . . . . . Eject 1 | . . . . . . . . . . . . . . . . . . . . . . . . 1 . . . . . Data Cores Recovered 1 | . . . . . . . . . . . . . . . . . . . . . . 1 . . . . . . . Used . | . . . . . . . . . . . . . . . . . . . . . . . . . . . . . . Hacking Detections 61 | . 6 1 11 . 3 4 . 4 . 3 . 1 . 1 . 2 3 . . 1 5 5 . 3 . 4 . 3 1 Full Trace Events 6 | . 1 . . . 1 . . . . . . . . . . 1 . . . 1 . 1 . . . 1 . . . Feedback Events . | . . . . . . . . . . . . . . . . . . . . . . . . . . . . . . Feedback Blocked . | . . . . . . . . . . . . . . . . . . . . . . . . . . . . . . Robot Schematics Acquired 1 | . . . 1 . . . . . . . . . . . . . . . . . . . . . . . . . . Robots Built 4 | . . . . . . . . . . . . . . . . . . . . . 1 3 . . . . . . . Matter 612 | . . . . . . . . . . . . . . . . . . . . . 153 459 . . . . . . . Time 242 | . . . . . . . . . . . . . . . . . . . . . 81 161 . . . . . . . Total Robot Build Rating 4 | . . . . . . . . . . . . . . . . . . . . . 1 3 . . . . . . . Part Schematics Acquired 3 | . . . 1 . . . . . . . . . . . . . . . . . 1 . . 1 . . . . . Parts Built . | . . . . . . . . . . . . . . . . . . . . . . . . . . . . . . Matter . | . . . . . . . . . . . . . . . . . . . . . . . . . . . . . . Time . | . . . . . . . . . . . . . . . . . . . . . . . . . . . . . . Total Part Build Rating . | . . . . . . . . . . . . . . . . . . . . . . . . . . . . . . Parts Repaired 1 | . 1 . . . . . . . . . . . . . . . . . . . . . . . . . . . . Time 26 | . 26 . . . . . . . . . . . . . . . . . . . . . . . . . . . . Parts Recycled . | . . . . . . . . . . . . . . . . . . . . . . . . . . . . . . Recycled Matter . | . . . . . . . . . . . . . . . . . . . . . . . . . . . . . . Retrieved Matter . | . . . . . . . . . . . . . . . . . . . . . . . . . . . . . . Retrieved Components 5 | . . . . . . . . . . . . . . . . . . . . . . 3 . . . . . . 2 Parts Scanalyzed 1 | . . . . . . . . . . . . . . . . . . . . . . . . 1 . . . . . Part Schematics Acquired 1 | . . . . . . . . . . . . . . . . . . . . . . . . 1 . . . . . Parts Damaged . | . . . . . . . . . . . . . . . . . . . . . . . . . . . . . . Bothacking | -11 -10 -9 -9 -9 -9 -7 -7 -7 -7 -6 -6 -6 -6 -5 -5 -5 -5 -5 -5 -5 -4 -4 -4 -3 -3 -2 -2 -1 -1 ------------ Run | Scr Mat Mat Sto Gar Rec Fac Gar Fac Gar Fac Gar Fac Gar Fac Was Fac Ext Cet Arc Hub Fac Arm Lab Res Gar Res Gar Acc Com Used RIF Installer 7 | . . . . 1 . . 1 . 1 . 1 . 1 . . . . . . . . . . . 1 . 1 . . Threat Obfuscator 1 | . . . . . . . . . . . . . . . . . . . . . . . . . 1 . . . . Signal Jammer 1 | . . . . . . . 1 . . . . . . . . . . . . . . . . . . . . . . Patrol Navigation 1 | . . . . . . . . . 1 . . . . . . . . . . . . . . . . . . . . Structural Interface 1 | . . . . . . . . . . . . . . . . . . . . . . . . . . . 1 . . Autooverride 1 | . . . . . . . . . . . . . 1 . . . . . . . . . . . . . . . . Autoassimilate 1 | . . . . . . . . . . . 1 . . . . . . . . . . . . . . . . . . Robots Hacked 5 | . . . . . . . . . . . . . . . . . . . . . . . . . . . . 5 . Non-combat 1 | . . . . . . . . . . . . . . . . . . . . . . . . . . . . 1 . Combat 4 | . . . . . . . . . . . . . . . . . . . . . . . . . . . . 4 . Autoassimilated 1 | . . . . . . . . . . . . . . . . . . . . . . . . . . . . 1 . Robot Hacks Applied 8 | . . . . . . . . . . . . . . . . . . . . . . . . . . . . 8 . purge_threat 3 | . . . . . . . . . . . . . . . . . . . . . . . . . . . . 3 . wipe_record 3 | . . . . . . . . . . . . . . . . . . . . . . . . . . . . 3 . overwrite_iff 2 | . . . . . . . . . . . . . . . . . . . . . . . . . . . . 2 . Relay Couplers Released 16 | . . . . . . . . . . . . . 3 . . . . . . 1 . . . 3 5 . 4 . . Ejected 3 | . . . . . . . . . . . . . . . . . . . . . . . . 3 . . . . . Machine Destruction 13 | . . . . . . . . . . . . . 3 . . . . . . 1 . . . . 5 . 4 . . Attached 8 | . . . . . . . . . . . . . . 1 . . . . 1 . . . . 1 . . 1 4 . Robots Rewired 10 | . . . . . . . . . . . . . . . . . 3 . . . . 7 . . . . . . . Allies Hacked 1 | . . . . . . . . . . . . . . . . . . . . . . 1 . . . . . . . Hacks Repelled . | . . . . . . . . . . . . . . . . . . . . . . . . . . . . . . Allies | -11 -10 -9 -9 -9 -9 -7 -7 -7 -7 -6 -6 -6 -6 -5 -5 -5 -5 -5 -5 -5 -4 -4 -4 -3 -3 -2 -2 -1 -1 -------- Run | Scr Mat Mat Sto Gar Rec Fac Gar Fac Gar Fac Gar Fac Gar Fac Was Fac Ext Cet Arc Hub Fac Arm Lab Res Gar Res Gar Acc Com Total Allies 52 | . . . 10 . . . . 1 . . . . . . 19 . 8 . . . 1 10 . . . . . 3 . Largest Group 18 | . . . 10 . . . . 1 . . . . . . 18 11 6 1 . . 1 4 3 1 . . . 1 . Highest-Rated Group 668 | . . . 88 . . . . 26 . . . . . . 668 372 187 156 . . 10 224 30 10 . . . 58 . Highest-Rated Ally 156 | . . . 16 . . . . 26 . . . . . . 50 50 156 156 . . 10 56 10 10 . . . 58 . Total Orders 24 | . . . 1 . . 2 . . . . . . . . . . 1 . . . 1 6 3 10 . . . . . STAY 6 | . . . . . . . . . . . . . . . . . . . . . 1 1 2 2 . . . . . ROAM 4 | . . . 1 . . . . . . . . . . . . . 1 . . . . 2 . . . . . . . FOLLOW 4 | . . . . . . . . . . . . . . . . . . . . . . 2 1 1 . . . . . AID 1 | . . . . . . . . . . . . . . . . . . . . . . 1 . . . . . . . EXPLORE 7 | . . . . . . 2 . . . . . . . . . . . . . . . . . 5 . . . . . RETURN 2 | . . . . . . . . . . . . . . . . . . . . . . . . 2 . . . . . Ally Attacks 198 | . . . 28 . . . . . . . . . . . 1 46 60 6 . . . 47 . . . . . 10 . Total Damage 4326 | . . . 228 . . . . . . . . . . . 21 813 1168 171 . . . 1727 . . . . . 198 . Kills 31 | . . . 2 . . . . . . . . . . . . 9 8 1 . . . 10 . . . . . 1 . Allies Corrupted 1 | . . . . . . . . . . . . . . . . . . . . . . 1 . . . . . . . Allies Melted . | . . . . . . . . . . . . . . . . . . . . . . . . . . . . . . Intel | -11 -10 -9 -9 -9 -9 -7 -7 -7 -7 -6 -6 -6 -6 -5 -5 -5 -5 -5 -5 -5 -4 -4 -4 -3 -3 -2 -2 -1 -1 ------- Run | Scr Mat Mat Sto Gar Rec Fac Gar Fac Gar Fac Gar Fac Gar Fac Was Fac Ext Cet Arc Hub Fac Arm Lab Res Gar Res Gar Acc Com Robot Analysis Total 3 | . . . 1 . . . . . . . . . . . . . . . . . . 1 . 1 . . . . . Derelict Logs Recovered . | . . . . . . . . . . . . . . . . . . . . . . . . . . . . . . Drone Launches 7 | . . . . . . 2 . . . . . . . . . . . . . . . . . 5 . . . . . Drone Recoveries 4 | . . . . . . 1 . . . . . . . . . . . . . . . . . 3 . . . . . Exploration | -11 -10 -9 -9 -9 -9 -7 -7 -7 -7 -6 -6 -6 -6 -5 -5 -5 -5 -5 -5 -5 -4 -4 -4 -3 -3 -2 -2 -1 -1 ------------- Run | Scr Mat Mat Sto Gar Rec Fac Gar Fac Gar Fac Gar Fac Gar Fac Was Fac Ext Cet Arc Hub Fac Arm Lab Res Gar Res Gar Acc Com Turns Passed 23200 | 247 1449 318 1427 477 415 459 216 330 374 800 740 262 667 199 968 733 1209 224 351 343 512 1542 823 861 892 691 855 912 3904 Spaces Moved 11135 | 115 635 96 595 205 190 250 112 175 146 363 351 149 326 101 562 342 594 96 114 132 460 861 399 424 348 311 469 495 1719 Core 458 | 5 . . . . . . . . . . . . 1 . . . . . . 42 282 15 . . . . 2 . 111 Treads 7971 | 110 598 96 595 205 190 250 112 175 48 119 351 149 325 101 285 342 594 96 114 90 39 120 . 234 348 311 130 236 1608 Legs 2230 | . . . . . . . . . 98 194 . . . . 277 . . . . . . 476 399 190 . . 337 259 . Wheels 272 | . 37 . . . . . . . . 50 . . . . . . . . . . 139 46 . . . . . . . Hover 97 | . . . . . . . . . . . . . . . . . . . . . . 97 . . . . . . . Flight 107 | . . . . . . . . . . . . . . . . . . . . . . 107 . . . . . . . Fastest Speed 42 | 50 80 180 180 180 180 160 160 160 150 120 160 160 160 160 120 160 160 160 160 50 50 42 120 120 160 160 115 115 50 Average Speed 147 | 155 169 180 180 186 196 160 160 160 156 161 160 161 162 165 140 160 160 160 160 125 79 105 120 142 160 160 135 131 142 Slowest Speed 1500 | 160 180 180 200 200 200 160 160 160 180 180 160 162 700 180 220 160 160 160 160 160 180 152 120 180 160 160 1500 153 166 Overloaded Moves . | . . . . . . . . . . . . . . . . . . . . . . . . . . . . . . Propulsion Burnouts . | . . . . . . . . . . . . . . . . . . . . . . . . . . . . . . Robots Hopped . | . . . . . . . . . . . . . . . . . . . . . . . . . . . . . . Cave-ins Triggered 1 | . . . . . . . . . . . . . . . . . . . . . . 1 . . . . . . . Teleports 1 | . . . . . . . . . . . . . . . . . . . . . . . . 1 . . . . . Exploration Rate (%) 41 | 5 92 12 84 47 51 20 40 4 39 13 57 7 44 4 94 12 63 54 77 26 17 52 91 22 60 11 68 20 51 Regions Visited 29 Branch Regions 9 Pre-discovered Areas 8 | . 2 . 2 . 4 . . . . . . . . . . . . . . . . . . . . . . . . Known Exits Taken 11 | . . 1 1 . . 1 . 1 . 1 . 1 . . . 1 . . . . 1 . . 1 . 1 . 1 . Unknown Exits Taken 9 | 1 1 . . . 1 . . . . . . . . . . . 1 1 1 1 . 1 1 . . . . . . Scrap Searched . | . . . . . . . . . . . . . . . . . . . . . . . . . . . . . . Spaces Dug 99 | . 6 13 15 . . . . . . . . . . 12 . . . . . 9 6 5 . 1 . 4 13 5 10 Terrain Destroyed 807 | . 8 71 32 25 . . . . 4 45 . . 21 12 . 18 19 11 22 213 9 17 . 48 14 12 52 44 110 Melee 6 | . 1 . . . . . . . . . . . . . . . . . . . . 5 . . . . . . . Projectile 278 | . 7 7 1 . . . . . . . . . 1 . . 1 19 11 22 59 9 5 . 3 14 12 16 21 70 AOE 523 | . . 64 31 25 . . . . 4 45 . . 20 12 . 17 . . . 154 . 7 . 45 . . 36 23 40 Terrain Rammed . | . . . . . . . . . . . . . . . . . . . . . . . . . . . . . . Walls Destroyed . | . . . . . . . . . . . . . . . . . . . . . . . . . . . . . . Machines Disabled . | . . . . . . . . . . . . . . . . . . . . . . . . . . . . . . Actions | -11 -10 -9 -9 -9 -9 -7 -7 -7 -7 -6 -6 -6 -6 -5 -5 -5 -5 -5 -5 -5 -4 -4 -4 -3 -3 -2 -2 -1 -1 --------- Run | Scr Mat Mat Sto Gar Rec Fac Gar Fac Gar Fac Gar Fac Gar Fac Was Fac Ext Cet Arc Hub Fac Arm Lab Res Gar Res Gar Acc Com Total 15422 | 155 860 163 802 254 209 287 126 197 226 466 441 164 400 118 654 483 790 132 237 210 579 1290 599 566 589 431 623 692 2679 Wait 1385 | . 70 . 36 1 . 1 4 . 11 28 6 1 8 . . 108 141 . 78 6 58 98 51 12 136 55 70 56 350 Move 11110 | 114 634 95 595 204 189 250 111 175 145 362 350 149 325 101 561 341 593 95 113 131 459 860 398 423 347 310 468 494 1718 Hop . | . . . . . . . . . . . . . . . . . . . . . . . . . . . . . . Pick Up 250 | 3 22 6 14 3 4 9 . 1 3 4 5 . 9 2 13 4 5 1 11 . 6 15 5 13 10 4 4 13 61 Fast Attach 337 | 8 7 . 17 1 1 1 . 1 10 6 9 5 5 1 9 1 3 9 2 . 15 65 16 20 9 5 16 16 79 Attach 202 | 1 4 5 7 7 . 5 . 1 2 5 6 . 9 3 8 2 3 1 4 7 8 19 3 8 4 2 3 10 65 Detach 92 | 2 2 . 5 . 1 1 . . . 2 1 1 . . 3 . . 2 3 5 6 12 2 7 . . 1 6 30 Swap 163 | . 21 11 13 7 . 4 . 1 6 10 5 . 8 2 2 4 2 1 . 5 1 5 3 3 1 4 7 16 21 Drop 386 | . 20 3 22 2 1 5 . 2 11 8 12 4 3 1 22 3 7 8 4 9 9 44 19 19 18 4 12 18 96 Fire 1239 | 23 65 39 83 27 10 10 11 13 33 41 45 3 33 6 36 18 25 13 20 43 16 96 44 48 57 44 40 59 238 Melee 74 | . 1 . . . . . . . . . . . . . . . . . . . . 14 58 . . . . . 1 Ram . | . . . . . . . . . . . . . . . . . . . . . . . . . . . . . . Kick 24 | . . . . . . . . . . . . . . . . . . . . . . 14 . 8 . . 1 1 . Crush 95 | 4 14 4 10 . 3 1 . 3 . . . 1 . 2 . 2 2 2 2 4 1 1 . 5 7 3 1 3 20 Escape Stasis 22 | . . . . 2 . . . . 5 . 2 . . . . . . . . . . 13 . . . . . . . Rewire 43 | . . . . . . . . . . . . . . . . . 9 . . . . 34 . . . . . . . Trap . | . . . . . . . . . . . . . . . . . . . . . . . . . . . . . . Miscellaneous . | . . . . . . . . . . . . . . . . . . . . . . . . . . . . . . Route ------- -11/Scrapyard -10/Materials (discovered 5 exits: *Mat x3 / [*Min x2]) -9/Materials (discovered 3 exits: Min / *Sto x2) -9/Storage -9/Garrison (discovered 2 exits: *Rec x2) -9/Recycling -7/Factory (discovered 2 exits: *Fac / Gar) -7/Garrison -7/Factory (discovered 4 exits: *Fac / Low x2 / Gar) -7/Garrison -6/Factory (discovered 3 exits: Low x2 / Gar) -6/Garrison (discovered 3 exits: *Fac x3) -6/Factory -6/Garrison (discovered 2 exits: *Fac x2) -5/Factory -5/Waste -5/Factory (discovered 4 exits: Upp x2 / *Ext x2) -5/Extension (discovered 2 exits: *Fac / [*Cet]) -5/Cetus -5/Archives (discovered 3 exits: *Fac / *Hub x2) -5/Hub_04(d) -4/Factory (discovered 3 exits: *Upp x2 / *Arm) -4/Armory -4/Lab -3/Research -3/Garrison (discovered 2 exits: *Res x2) -2/Research -2/Garrison (discovered 2 exits: *Acc x2) -1/Access (discovered 2 exits: [*Sur] / *Com) -1/Command 0b11 Command History --------- Turn | Location | Event 2 | -11/Scrapyard | Discovered new exit (range 16) 248 | -11/Scrapyard | Entered Materials 315 | -10/Materials | Build established: Mutant 494 | -10/Materials | Discovered new exit (range 3) 777 | -10/Materials | Core integrity fell below 50% 1196 | -10/Materials | Discovered new exit (range 7) 1227 | -10/Materials | Discovered new exit (range 3) 1387 | -10/Materials | Discovered new exit (range 16) 1535 | -10/Materials | Repaired Lgt. Treads 1572 | -10/Materials | Discovered new exit (range 14) 1697 | -10/Materials | Entered another Materials area 1697 | -9/Materials | Evolved 2 slots: Utility x2 1834 | -9/Materials | Destroyed 14 combat bots 1971 | -9/Materials | Identified exit to Mines 1971 | -9/Materials | Identified exit to Storage 2015 | -9/Materials | Entered Storage 2928 | -9/Storage | Assisted by bots powering up and referring to "LRC-V3" 3349 | -9/Storage | Build established: Scavenger-Mutant 3442 | -9/Storage | Identified exit to Garrison 3442 | -9/Storage | Entered Garrison 3583 | -9/Garrison | Core integrity fell below 50% 3598 | -9/Garrison | Discovered new exit (range 12) 3662 | -9/Garrison | Triggered checkpoint 3775 | -9/Garrison | Lost 3 parts (1p1n1w) 3871 | -9/Garrison | Discovered new exit (range 14) 3911 | -9/Garrison | Installed Relay Interface Framework 3919 | -9/Garrison | Entered Recycling 3939 | -9/Recycling | Spotter reported a threat 3962 | -9/Recycling | Spotter reported a threat 3962 | -9/Recycling | Spotter reported a threat 3966 | -9/Recycling | Spotter reported a threat 3966 | -9/Recycling | Spotter reported a threat 3967 | -9/Recycling | Spotter reported a threat 4004 | -9/Recycling | Spotter reported a threat 4015 | -9/Recycling | Spotter reported a threat 4019 | -9/Recycling | Spotter reported a threat 4041 | -9/Recycling | Spotter reported a threat 4053 | -9/Recycling | Spotter reported a threat 4057 | -9/Recycling | Spotter reported a threat 4066 | -9/Recycling | Spotter reported a threat 4069 | -9/Recycling | Spotter reported a threat 4072 | -9/Recycling | Spotter reported a threat 4078 | -9/Recycling | Spotter reported a threat 4148 | -9/Recycling | Spotter reported a threat 4262 | -9/Recycling | Spotter reported a threat 4286 | -9/Recycling | Spotter reported a threat 4305 | -9/Recycling | Spotter reported a threat 4305 | -9/Recycling | Discovered new exit (range 16) 4334 | -9/Recycling | Entered Factory 4334 | -7/Factory | Evolved 4 slots: Propulsion x2, Utility x1, Weapon x1 4391 | -7/Factory | Discovered new exit (range 45) 4575 | -7/Factory | Identified exit to Factory 4615 | -7/Factory | Build established: Tank 4734 | -7/Factory | First assault squad dispatched 4793 | -7/Factory | Identified exit to Garrison 4793 | -7/Factory | Entered Garrison 4918 | -7/Garrison | Triggered checkpoint 4976 | -7/Garrison | Build established: Scavenger-Tank 4977 | -7/Garrison | Discovered new exit (range 10) 5002 | -7/Garrison | Expanded RIF knowledge: Signal Jamming 5009 | -7/Garrison | Entered Factory 5215 | -7/Factory | Identified exit to Lower Caves 5306 | -7/Factory | Discovered exit to Factory (range 12) 5339 | -7/Factory | Identified exit to Garrison 5339 | -7/Factory | Entered Garrison 5467 | -7/Garrison | Lost 4 parts (2n2u) 5470 | -7/Garrison | Triggered checkpoint 5472 | -7/Garrison | Destroyed 9 combat bots 5625 | -7/Garrison | Discovered exit to Factory (range 15) 5703 | -7/Garrison | Expanded RIF knowledge: Watcher Feeds 5713 | -7/Garrison | Entered Factory 5713 | -6/Factory | Evolved 2 slots: Weapon x2 5970 | -6/Factory | Identified exit to Lower Caves 6383 | -6/Factory | Garrison activated, responded to threat 6408 | -6/Factory | Destroyed 13 combat bots 6476 | -6/Factory | Identified exit to Garrison 6513 | -6/Factory | Entered Garrison 6566 | -6/Garrison | Spotted B-75 Beast 6595 | -6/Garrison | Destroyed B-75 Beast 6604 | -6/Garrison | Triggered checkpoint 6712 | -6/Garrison | Destroyed 7 combat bots 6876 | -6/Garrison | Discovered new exit (range 8) 6995 | -6/Garrison | Discovered new exit (range 15) 7031 | -6/Garrison | Build established: Scavenger-Gunner 7134 | -6/Garrison | Triggered checkpoint 7191 | -6/Garrison | Discovered new exit (range 14) 7228 | -6/Garrison | Expanded RIF knowledge: Autoassimilate 7253 | -6/Garrison | Entered Factory 7515 | -6/Factory | Identified exit to Garrison 7515 | -6/Factory | Entered Garrison 7561 | -6/Garrison | Spotted B-75 Beast 7605 | -6/Garrison | Core integrity fell below 50% 7654 | -6/Garrison | Destroyed 11 combat bots 7656 | -6/Garrison | Lost 10 parts (1p4n5w) 7762 | -6/Garrison | Triggered checkpoint 7762 | -6/Garrison | Destroyed B-75 Beast 7762 | -6/Garrison | Triggered checkpoint 7852 | -6/Garrison | Discovered new exit (range 10) 7970 | -6/Garrison | Discovered new exit (range 8) 7991 | -6/Garrison | Expanded RIF knowledge: Autooverride 8044 | -6/Garrison | Triggered checkpoint 8088 | -6/Garrison | Garrison Relay disabled 8182 | -6/Garrison | Entered Factory 8182 | -5/Factory | Evolved 2 slots: Utility x2 8381 | -5/Factory | Sucked down chute 8381 | -5/Factory | Entered Waste 8382 | -5/Waste | Met a frightened Derelict 8399 | -5/Waste | Spotted C-40 Crusher 8415 | -5/Waste | Destroyed C-40 Crusher 8424 | -5/Waste | Found Damper Plating 8427 | -5/Waste | Spotted C-40 Crusher 8439 | -5/Waste | Crushed by Compactor (1 part destroyed, 1 dropped) 8467 | -5/Waste | Crushed by Compactor (1 part destroyed, 1 dropped) 8468 | -5/Waste | Destroyed C-40 Crusher 8510 | -5/Waste | Spotted C-40 Crusher 8575 | -5/Waste | Crushed by Compactor (1 part destroyed, 2 dropped) 8603 | -5/Waste | Destroyed C-40 Crusher 8669 | -5/Waste | Spotted C-40 Crusher 8687 | -5/Waste | Destroyed C-40 Crusher 8698 | -5/Waste | Spotted C-40 Crusher 8764 | -5/Waste | Destroyed C-40 Crusher 8863 | -5/Waste | Spotted C-40 Crusher 8915 | -5/Waste | Destroyed C-40 Crusher 8965 | -5/Waste | Found Damper Plating 9109 | -5/Waste | Found Damper Plating 9216 | -5/Waste | Discovered new exit (range 13) 9231 | -5/Waste | Warlord forces began an assault 9349 | -5/Waste | Entered Factory 9349 | -5/Factory | Accompanied by 11 allies 9843 | -5/Factory | Identified exit to Upper Caves 9843 | -5/Factory | Identified exit to Extension 10082 | -5/Factory | Entered Extension 10363 | -5/Extension | Rescued a captive Derelict 10365 | -5/Extension | Rescued a captive Derelict 10632 | -5/Extension | Rescued a captive Derelict 10633 | -5/Extension | Rescued a captive Derelict 10962 | -5/Extension | Spotted B-75 Beast 10966 | -5/Extension | Allies destroyed B-75 Beast 10982 | -5/Extension | Spotted B-75 Beast 10987 | -5/Extension | Destroyed B-75 Beast 11119 | -5/Extension | Rescued A7 11265 | -5/Extension | Discovered new exit (range 15) 11267 | -5/Extension | Discovered new exit (range 15) 11291 | -5/Extension | Entered Cetus 11291 | -5/Cetus | Accompanied by 1 ally (A7) 11296 | -5/Cetus | Acquired a Cetus Manufacturing Module code from A7 11313 | -5/Cetus | Spotted Cetus Guard 11313 | -5/Cetus | Spotted Cetus Guard 11317 | -5/Cetus | Destroyed Cetus Guard 11318 | -5/Cetus | Spotted Cetus Guard 11320 | -5/Cetus | Allies destroyed Cetus Guard 11320 | -5/Cetus | Spotted Cetus Guard 11325 | -5/Cetus | Destroyed Cetus Guard 11328 | -5/Cetus | Destroyed Cetus Guard 11356 | -5/Cetus | Destroyed A7 11367 | -5/Cetus | Found Prototype Protection 11367 | -5/Cetus | Identified Med. Regenerative Plating 11371 | -5/Cetus | Extracted ID and sensor layout for unrecognized location from A7's data core 11489 | -5/Cetus | Discovered new exit (range 15) 11515 | -5/Cetus | Entered Archives 11738 | -5/Archives | Discovered new exit (range 16) 11793 | -5/Archives | Discovered new exit (range 16) 11840 | -5/Archives | Discovered new exit (range 16) 11866 | -5/Archives | Entered Hub_04(d) 12001 | -5/Hub_04(d) | Network Hub disabled 12001 | -5/Hub_04(d) | Spotted Lightning 12005 | -5/Hub_04(d) | Spotted Lightning 12019 | -5/Hub_04(d) | Spotted Lightning 12020 | -5/Hub_04(d) | Spotted Lightning 12021 | -5/Hub_04(d) | Spotted Lightning 12021 | -5/Hub_04(d) | Spotted Lightning 12022 | -5/Hub_04(d) | Spotted Lightning 12032 | -5/Hub_04(d) | Spotted Lightning 12035 | -5/Hub_04(d) | Spotted Lightning 12048 | -5/Hub_04(d) | Destroyed Lightning 12057 | -5/Hub_04(d) | Spotted Lightning 12058 | -5/Hub_04(d) | Spotted Lightning 12059 | -5/Hub_04(d) | Spotted Lightning 12095 | -5/Hub_04(d) | Destroyed Lightning 12120 | -5/Hub_04(d) | Destroyed 9 combat bots 12137 | -5/Hub_04(d) | Destroyed Lightning 12144 | -5/Hub_04(d) | Destroyed Lightning 12158 | -5/Hub_04(d) | Destroyed Lightning 12182 | -5/Hub_04(d) | System corruption reached 10% 12207 | -5/Hub_04(d) | Discovered new exit (range 5) 12209 | -5/Hub_04(d) | Entered Factory 12209 | -4/Factory | Evolved 2 slots: Propulsion x2 12282 | -4/Factory | Fabricated O-16 Technician (x1) 12352 | -4/Factory | Discovered new exit (range 15) 12427 | -4/Factory | Identified exit to Upper Caves 12427 | -4/Factory | Identified exit to Armory 12480 | -4/Factory | Build established: Hacker-Mutant 12721 | -4/Factory | Entered Armory 12741 | -4/Armory | Lost 8 parts (1p4n2u1w) 12775 | -4/Armory | Energy Cycler disabled 12806 | -4/Armory | Lost 5 parts (1p1n3w) 13309 | -4/Armory | Lost 11 parts (1p2n5u3w) 13575 | -4/Armory | Crushed by falling debris 13575 | -4/Armory | System corruption reached 10% 13603 | -4/Armory | Destroyed 8 combat bots 13607 | -4/Armory | Core integrity fell below 50% 13617 | -4/Armory | Lost 8 parts (3u5w) 13883 | -4/Armory | Discovered new exit (range 3) 14076 | -4/Armory | Fabricated O-16 Technician (x1) 14117 | -4/Armory | Fabricated O-16 Technician? 14227 | -4/Armory | Fabricated O-16 Technician? 14263 | -4/Armory | Entered Lab 14263 | -4/Lab | Accompanied by 3 allies 14264 | -4/Lab | Discovered new exit (range 9) 14281 | -4/Lab | Hidden lab's door opened automatically 14281 | -4/Lab | Sensor layout match revealed 14282 | -4/Lab | Gained access to the hidden lab's interior 14418 | -4/Lab | Found Alien Artifact 14418 | -4/Lab | Identified Integrated Reactor 14418 | -4/Lab | Installed Integrated Reactor, increased core energy generation (+10) 14428 | -4/Lab | Found Alien Artifact 14493 | -4/Lab | Found Alien Artifact 14508 | -4/Lab | Found Alien Artifact 14605 | -4/Lab | Found Prototype Hackware 14605 | -4/Lab | Identified Quantum Router 14668 | -4/Lab | Found Med. Regenerative Plating 14693 | -4/Lab | Detected by scanners 14695 | -4/Lab | Identified Core Expander 14695 | -4/Lab | Installed Core Expander, added new Utility slot 14709 | -4/Lab | Disabled Active System Cloaker 14726 | -4/Lab | Confronted by A5 14863 | -4/Lab | Destroyed A5 14898 | -4/Lab | Found Prototype Energy Gun 14898 | -4/Lab | Identified Tachyon Dispersion Ray 14902 | -4/Lab | Found Prototype Energy Cannon 15050 | -4/Lab | Found Prototype Hackware 15050 | -4/Lab | Identified Exp. System Shield 15086 | -4/Lab | Entered Research 15086 | -3/Research | Accompanied by 1 ally 15086 | -3/Research | Evolved 2 slots: Power x1, Utility x1 15195 | -3/Research | Identified Transdimensional Reconstructor 15249 | -3/Research | Found Unknown Device 15249 | -3/Research | Identified Antimissile System 15291 | -3/Research | Build established: Hacker-Gunner 15504 | -3/Research | Warped through subspace 15507 | -3/Research | Identified Core Reset Matrix 15507 | -3/Research | Identified Potential Cannon 15558 | -3/Research | Found Prototype Launcher 15558 | -3/Research | Identified Adv. Micro-nuke Launcher 15808 | -3/Research | Identified exit to Garrison 15932 | -3/Research | Destroyed 8 combat bots 15947 | -3/Research | Entered Garrison 16018 | -3/Garrison | Triggered checkpoint 16062 | -3/Garrison | Garrison Relay disabled 16136 | -3/Garrison | Spotted B-86 Titan 16275 | -3/Garrison | Triggered checkpoint 16279 | -3/Garrison | Triggered checkpoint 16318 | -3/Garrison | Triggered checkpoint 16443 | -3/Garrison | Build established: Bothacker-Tank 16508 | -3/Garrison | Destroyed B-86 Titan 16670 | -3/Garrison | Discovered new exit (range 8) 16801 | -3/Garrison | Discovered new exit (range 15) 16814 | -3/Garrison | Triggered checkpoint 16833 | -3/Garrison | Expanded RIF knowledge: Threat Obfuscation 16839 | -3/Garrison | Entered Research 16839 | -2/Research | Evolved 2 slots: Utility x2 17227 | -2/Research | Build established: Scavenger-Tank 17499 | -2/Research | Found Gamma Bomb Array 17514 | -2/Research | Intercept squad dispatched 17517 | -2/Research | Spotted Tracker 17518 | -2/Research | Spotted Tracker 17519 | -2/Research | Identified exit to Garrison 17530 | -2/Research | Entered Garrison 17580 | -2/Garrison | Triggered checkpoint 17608 | -2/Garrison | Garrison Relay disabled 17849 | -2/Garrison | Triggered checkpoint 17909 | -2/Garrison | Destroyed 10 combat bots 17918 | -2/Garrison | Lost 7 parts (1p3n1u2w) 18209 | -2/Garrison | Discovered new exit (range 14) 18360 | -2/Garrison | Discovered new exit (range 13) 18380 | -2/Garrison | Expanded RIF knowledge: Structural Interface 18385 | -2/Garrison | Entered Access 18385 | -1/Access | Evolved 2 slots: Utility x2 18539 | -1/Access | Identified exit to Command 18854 | -1/Access | Discovered new exit (range 7) 18867 | -1/Access | Intercept squad dispatched 18891 | -1/Access | Spotted Tracker 18892 | -1/Access | Spotted Tracker 18906 | -1/Access | Spotted Combat Programmer 18908 | -1/Access | Destroyed Tracker 18914 | -1/Access | Destroyed Tracker 18925 | -1/Access | Destroyed Combat Programmer 18936 | -1/Access | Found Prototype Processor 18936 | -1/Access | Identified Exp. Targeting Computer 18938 | -1/Access | Spotted Combat Programmer 18939 | -1/Access | Found Exp. Targeting Computer 18968 | -1/Access | Destroyed Combat Programmer 19076 | -1/Access | Build established: Scavenger-Gunner 19152 | -1/Access | Spotted B-99 Colossus 19297 | -1/Access | Entered Command 19702 | -1/Command | Found Antimissile System 19705 | -1/Command | Found Antimissile System 20141 | -1/Command | Spotted M Guard 20141 | -1/Command | Spotted M Guard 20141 | -1/Command | Spotted Combat Programmer 20143 | -1/Command | Spotted Combat Programmer 20145 | -1/Command | System corruption reached 10% 20150 | -1/Command | Destroyed M Guard 20160 | -1/Command | Destroyed M Guard 20167 | -1/Command | Destroyed Combat Programmer 20179 | -1/Command | Destroyed Combat Programmer 20179 | -1/Command | All MAIN.C guards destroyed 20213 | -1/Command | Found Prototype Device 20213 | -1/Command | Identified AEGIS Remote Shield 20219 | -1/Command | Found Prototype Reactor 20234 | -1/Command | Found AEGIS Remote Shield 20236 | -1/Command | Found Prototype Launcher 20242 | -1/Command | Identified Zero-point Reactor 20242 | -1/Command | Found Zero-point Reactor 20252 | -1/Command | Found Zero-point Reactor 20257 | -1/Command | Found Prototype Protection 20257 | -1/Command | Identified Hvy. Regenerative Plating 20267 | -1/Command | Found Prototype Energy Cannon 20267 | -1/Command | Identified Cld. Nova Cannon 20276 | -1/Command | Identified Hellfire Missile Launcher 20286 | -1/Command | Found Hvy. Regenerative Plating 20569 | -1/Command | Spotted Alpha 7 20630 | -1/Command | Destroyed Alpha 7 20689 | -1/Command | Spotted Striker 20689 | -1/Command | Spotted Executioner 20691 | -1/Command | Spotted Executioner 20700 | -1/Command | Destroyed Striker 20711 | -1/Command | Destroyed Executioner 20757 | -1/Command | Destroyed Executioner 20769 | -1/Command | Found Prototype Device 20769 | -1/Command | Identified Adv. Kinecellerator 20790 | -1/Command | Spotted Executioner 20796 | -1/Command | Spotted Striker 20796 | -1/Command | Spotted Executioner 20798 | -1/Command | Spotted Alpha 7 20808 | -1/Command | Spotted B-99 Colossus 20810 | -1/Command | Spotted B-99 Colossus 20831 | -1/Command | Destroyed Striker 20886 | -1/Command | System corruption reached 30% 20975 | -1/Command | Destroyed Alpha 7 20980 | -1/Command | Found Prototype Processor 20980 | -1/Command | Identified Exp. Target Analyzer 20984 | -1/Command | Found Exp. Targeting Computer 20987 | -1/Command | Found Prototype Device 20987 | -1/Command | Identified Exp. ECM Suite 21002 | -1/Command | Lost 9 parts (1p2n3u3w) 21079 | -1/Command | Destroyed Executioner 21329 | -1/Command | First assault squad dispatched 21702 | -1/Command | Destroyed 9 combat bots 21798 | -1/Command | Met MAIN.C 22102 | -1/Command | Lost 3 parts (1u2w) 22350 | -1/Command | Destroyed MAIN.C Shell 22350 | -1/Command | 0b10 Conduit disabled 22353 | -1/Command | MAIN.C activated Command garrisons 22360 | -1/Command | Core integrity fell below 50% 22386 | -1/Command | Destroyed MAIN.C 22424 | -1/Command | Destroyed 8 combat bots 22435 | -1/Command | Lost 18 parts (2p4n6u6w) 22870 | -1/Command | Discovered new exit (range 9) 23077 | -1/Command | Found Prototype Ballistic Cannon 23077 | -1/Command | Identified Omega Cannon 23112 | -1/Command | Found Prototype Reactor 23112 | -1/Command | Identified Vortex Chain Reactor 23117 | -1/Command | Found Prototype Device 23117 | -1/Command | Identified System Purifier 23120 | -1/Command | Found Prototype Processor 23120 | -1/Command | Identified Spectral Analyzer 23125 | -1/Command | Found Prototype Device 23125 | -1/Command | Identified Beam Splitter 23128 | -1/Command | Found Prototype Processor 23128 | -1/Command | Identified Exp. Armor Integrity Analyzer 23201 | *** | Establishing 0b11! Last Messages --------------- 23120_ Acquired Prototype Processor. 23120_ Identified Spectral Analyzer. 23122_ Discarded Visual Processing Unit. 23125_ Acquired Prototype Device. 23125_ Identified Beam Splitter. 23126_ Dropped Adv. Heat Sink. 23128_ Acquired Prototype Processor. 23128_ Identified Exp. Armor Integrity Analyzer. 23131_ Discarded Adv. Armor Integrity Analyzer. 23134_ YVO7X8&6704:AZY7FM/ LANSDTXPY,R Y#&, 23169_ System corrupted: Matter fused (-5). 23174_ System Purifier purges 1% of system corruption (60%). 23185_ W<:WWVIBJ5 LETCPU